Cogmind - Beta 14 @@@ ROGUE MODE // 2024.11.12 @ 13:01:00 Player: hanna Result: Destroyed by S-10 Pest with Light Assault Rifle Performance ------------- Evolutions (1) 500 Regions Visited (4) 800 Robots Destroyed (44) 220 Value Destroyed (1193) 1193 Prototype IDs (5) 100 Alien Tech Used (0) 0 Bonus (446) 446 TOTAL SCORE: 3259 Bonus ------- High Alert Combat Kills 294 Follower Combat Kills 165 Friendly Fire -13 Cogmind --------- Core Integrity 0/400 Matter 400/400 Energy 198/280 System Corruption 0% Temperature Cool (0) Movement Walking (120) Location -9/Storage Parts ------- > --- POWER (1) -------- Heavy Ion Engine > --- PROPULSION (2) --- Aluminum Leg Aluminum Leg > --- UTILITY (4) ------ Improved Heat Sink Medium Matter Pod Gravity Neutralizer Targeting Computer > --- WEAPON (2) ------- Advanced Beam Cannon Mini Grenade Launcher > --- INVENTORY (5) ---- Cooled Ion Engine Power Shielding Heavy EM Pulse Gun Advanced Beam Cannon Peak State ------------ > --- POWER ------------ Cooled Ion Engine > --- PROPULSION ------- Aluminum Leg Aluminum Leg > --- UTILITY ---------- Improved Heat Sink Medium Matter Pod Gravity Neutralizer Targeting Computer > --- WEAPON ----------- Advanced Beam Cannon Mini Grenade Launcher > --- INVENTORY -------- Heavy Ion Engine Aluminum Leg Power Shielding Heavy EM Pulse Gun Advanced Beam Cannon [Rating: 22] Favorites ----------- Power Ion Engine Engine Ion Engine Propulsion Aluminum Leg Leg Aluminum Leg Flight Unit Improved Flight Unit Utility Targeting Computer Device Improved Heat Sink Storage Small Storage Unit Processor Targeting Computer Protection Power Shielding Weapon Light Assault Rifle Energy Gun Beam Rifle Energy Cannon Advanced Beam Cannon Ballistic Gun Light Assault Rifle Launcher Mini Grenade Launcher Impact Weapon Heavy Hammer Build | -11 -10 -10 -9 -9 ------- Run | Yrd Mat Min Mat Sto Slots Evolved 2 | . . . 2 . Power . | . . . . . Propulsion . | . . . . . Utility 2 | . . . 2 . Weapon . | . . . . . Parts Attached 40 | 6 3 . 17 14 Power 4 | 1 . . 2 1 Engine 4 | 1 . . 2 1 Core . | . . . . . Reactor . | . . . . . Propulsion 11 | 2 . . 2 7 Treads . | . . . . . Leg 9 | 2 . . 2 5 Wheel . | . . . . . Hover . | . . . . . Flight 2 | . . . . 2 Utility 8 | 1 3 . 1 3 Device 3 | . . . 1 2 Storage 3 | 1 1 . . 1 Processor 1 | . 1 . . . Hackware . | . . . . . Protection 1 | . 1 . . . Artifact . | . . . . . Weapon 17 | 2 . . 12 3 Energy Gun 1 | . . . 1 . Energy Cannon 3 | . . . 2 1 Ballistic Gun 5 | 2 . . 3 . Ballistic Cannon . | . . . . . Launcher 6 | . . . 4 2 Special Weapon . | . . . . . Impact Weapon 2 | . . . 2 . Slashing Weapon . | . . . . . Piercing Weapon . | . . . . . Special Melee Weapon . | . . . . . Unidentified Prototypes 5 | . . . 2 3 Parts Lost 9 | . . . 7 2 Power 1 | . . . 1 . Propulsion 4 | . . . 2 2 Utility . | . . . . . Weapon 4 | . . . 4 . Highest Loss Streak 7 | . . . 7 1 To Critical Strikes . | . . . . . Average Slot Usage (%) 88 | . 98 100 70 91 Engine 11 | . 14 14 9 11 Leg 22 | . 28 28 18 19 Device 5 | . . . 2 14 Storage 4 | . 12 . . 4 Processor 11 | . 12 14 11 11 Protection 8 | . 1 14 11 7 Energy Cannon 5 | . . . 3 13 Ballistic Gun 13 | . 28 28 7 . Launcher 3 | . . . 3 8 Peak Build Rating 22 | 6 7 7 14 22 Average Rating 9 | 4 6 7 8 16 On Entrance 6 | . 6 7 7 14 Naked Turns . | . . . . . Heaviest Build 18 | 12 12 8 18 18 Greatest Support 32 | 20 20 20 20 32 Greatest Overweight (x) 2 | 2 . . 1 2 Average Overweight (x) . | . . . . . Largest Inventory Capacity 25 | 8 25 5 5 5 Average Capacity 5 | 5 7 5 5 5 Most Carried 5 | 4 4 4 5 5 Average Carried 3 | 1 2 3 4 3 Final Capacity 8 | 8 5 5 5 5 Final Carried 4 | 1 3 4 3 4 Class Distribution -------------------- 100% | Mutant Dominant Class ---------------- Mutant | -10/Materials Mutant | -10/Mines Mutant | -9/Materials Mutant | -9/Storage Resources | -11 -10 -10 -9 -9 ----------- Run | Yrd Mat Min Mat Sto Matter Collected 875 | 268 . . 287 320 Remotely . | . . . . . Salvage Created 1469 | 100 . . 331 1038 Parts 80 | 3 . . 15 62 Haulers Intercepted 3 | . . . 2 1 Recyclers Shooed . | . . . . . Parts Field Recycled . | . . . . . Retrieved Matter . | . . . . . Parts Self-Destructed . | . . . . . Prevented . | . . . . . Kills | -11 -10 -10 -9 -9 ------- Run | Yrd Mat Min Mat Sto Combat Hostiles Destroyed 32 | . . . 6 26 Melee 1 | . . . 1 . Guns 4 | . . . 4 . Cannons 15 | . . . . 15 AOE 11 | . . . . 11 Classes Destroyed 11 | 1 . . 6 4 Worker 3 | . . . 1 2 Builder 3 | . . . 3 . Hauler 3 | . . . 2 1 Recycler 2 | 1 . . . 1 Mechanic 1 | . . . . 1 Swarmer 3 | . . . . 3 Grunt 20 | . . . 4 16 Brawler 1 | . . . . 1 Duelist 1 | . . . 1 . Protector 1 | . . . . 1 Sentry 6 | . . . 1 5 Best Kill Streak 10 | 1 . . 6 10 Combat Bots Only 10 | . . . 3 10 Max Kills in Single Turn 4 | 1 . . 1 4 Gunslinging . | . . . . . Exploded 3 | . . . . 3 Melee 1 | . . . 1 . Uniques/NPCs Destroyed . | . . . . . Combat | -11 -10 -10 -9 -9 -------- Run | Yrd Mat Min Mat Sto Hostile Shots Fired 152 | . . . 70 82 Missed 46 | . . . 16 30 Damage Taken 1575 | . . . 859 716 Core 404 | . . . 171 233 Absorbed by Shields . | . . . . . Redirected to Shielding 31 | . . . 28 3 Core Remaining (%) 100 | 100 . 100 . . Volleys Fired 81 | 4 2 . 21 54 Largest 2 | 2 2 . 2 2 Hottest 136 | 40 40 . 76 136 Shots Fired 109 | 8 4 . 37 60 Gun 40 | 8 4 . 28 . Cannon 51 | . . . . 51 Launcher 18 | . . . 9 9 Special . | . . . . . Kinetic 31 | 8 4 . 19 . Thermal 60 | . . . 9 51 Explosive 18 | . . . 9 9 Electromagnetic . | . . . . . Robot Hit Streak 13 | 3 2 . 10 13 Robot Miss Streak 3 | 1 2 . 3 2 Penetration Max . | . . . . . Secondary Targets 2 | . . . 2 . Max Gunslinging Chain 1 | . . . 1 . Shots Hit Robots 85 | 5 2 . 34 44 Core Hits 53 | 2 . . 12 39 Critical Kills . | . . . . . Critical Parts Destroyed 3 | . . . 3 . Critical Strikes 3 | . . . 3 . Smash 3 | . . . 3 . Melee Attacks 10 | . . . 10 . Impact 10 | . . . 10 . Slashing . | . . . . . Piercing . | . . . . . Sneak Attacks 3 | . . . 3 . Combat Hostiles . | . . . . . Follow-up Attacks . | . . . . . Damage Inflicted 2978 | 43 16 . 1041 1878 Guns 242 | 43 16 . 183 . Cannons 783 | . . . . 783 Explosions 1418 | . . . 331 1087 Melee 527 | . . . 527 . Ramming 8 | . . . . 8 Kinetic 156 | 43 16 . 97 . Thermal 869 | . . . 86 783 Explosive 1418 | . . . 331 1087 Electromagnetic . | . . . . . Impact 527 | . . . 527 . Slashing . | . . . . . Piercing . | . . . . . Highest Corruption . | . . . . . Average Corruption . | . . . . . Corruption Purged . | . . . . . Corruption Blocked . | . . . . . Overload Shots . | . . . . . Overflow Damage 433 | . . . 366 67 Projectiles . | . . . . . Explosions 94 | . . . 27 67 Melee 339 | . . . 339 . Knockbacks 3 | . . . 3 . Impact 3 | . . . 3 . Kinetic . | . . . . . Secondary . | . . . . . Self-Inflicted Damage 65 | . . . 35 30 Shots 3 | . . . 2 1 Rammed . | . . . . . Targets Rammed 2 | . . . . 2 Kicked 2 | . . . . 2 Crushed . | . . . . . Highest Temperature 157 | . . . 157 60 Average Temperature 44 | . . . 71 11 Received Heat Transfer 519 | . . . 282 237 Siege Activations . | . . . . . Robots Corrupted 2 | . . . 2 . Combat Hostiles 1 | . . . 1 . Parts Fried 7 | . . . 7 . Impact Corruptions 13 | . . . 13 . Robots Melted . | . . . . . Combat Hostiles . | . . . . . Parts Melted 3 | . . . . 3 Heat Transferred 1628 | . . . 222 1406 Parts Sabotaged . | . . . . . Parts Stolen . | . . . . . Parts Stripped . | . . . . . Power Chain Reactions . | . . . . . Alert | -11 -10 -10 -9 -9 ------- Run | Yrd Mat Min Mat Sto Peak Influence 1152 | 5 18 6 238 1152 Initial 100 | . 3 6 1 100 Average 225 | 1 11 6 123 619 Maximum Alert Level 4 | . . . 1 4 Low Security (%) 68 | 100 100 100 74 20 Level 1 8 | . . . 25 8 Level 2 7 | . . . . 23 Level 3 14 | . . . . 45 Level 4 . | . . . . 2 Level 5 . | . . . . . High Security . | . . . . . Max Security . | . . . . . Squads Dispatched 7 | . . . 1 6 Investigation 1 | . . . . 1 Extermination . | . . . . . Reinforcement 4 | . . . 1 3 Assault 2 | . . . . 2 Garrison . | . . . . . Intercept . | . . . . . Searches Triggered . | . . . . . Construction Impeded 1 | . . . . 1 Haulers Reinforced . | . . . . . Active Scanning Responses . | . . . . . Cargo Convoy Interrupts . | . . . . . Stealth | -11 -10 -10 -9 -9 --------- Run | Yrd Mat Min Mat Sto Distress Signals 7 | . . . 2 5 Communications Jammed . | . . . . . Distress Signals . | . . . . . Times Spotted 55 | . 3 . 10 42 Peak Tracking Total 12 | . 2 . 6 12 Tactical Retreats 4 | . . . 1 3 Traps | -11 -10 -10 -9 -9 ------- Run | Yrd Mat Min Mat Sto Traps Triggered 1 | . . . . 1 Indirectly . | . . . . . Trap Hack Attempts . | . . . . . Triggered . | . . . . . Disarmed . | . . . . . Reprogrammed . | . . . . . Reused . | . . . . . Traps Extracted . | . . . . . Installed . | . . . . . Triggered . | . . . . . Most Traps Carried 1 | . . 1 1 1 Machines | -11 -10 -10 -9 -9 ---------- Run | Yrd Mat Min Mat Sto Machines Disabled 3 | . . . . 3 Max in Single Turn 1 | . . . . 1 Machines Repaired . | . . . . . Machines Dismantled . | . . . . . Machines Sabotaged . | . . . . . Overloaded Fab Kills . | . . . . . Hacking | -11 -10 -10 -9 -9 --------- Run | Yrd Mat Min Mat Sto Machines Accessed 3 | . 1 . 1 1 Terminals 2 | . 1 . . 1 Fabricators . | . . . . . Repair Stations . | . . . . . Recycling Units . | . . . . . Scanalyzers 1 | . . . 1 . Garrison Access . | . . . . . Total Hacks 7 | . 1 . 2 4 Successful 4 | . 1 . 2 1 Failed 3 | . . . . 3 Catastrophic . | . . . . . Database Lockouts . | . . . . . Manual . | . . . . . Terminals 5 | . 1 . . 4 Fabricators . | . . . . . Repair Stations . | . . . . . Recycling Units . | . . . . . Scanalyzers 2 | . . . 2 . Garrison Access . | . . . . . Terminal Hacks 2 | . 1 . . 1 Open Door 1 | . . . . 1 Investigation Status 1 | . 1 . . . Fabricator Hacks . | . . . . . Repair Station Hacks . | . . . . . Recycling Unit Hacks . | . . . . . Scanalyzer 2 | . . . 2 . Insert Component 1 | . . . 1 . Analyze 1 | . . . 1 . Garrison Access Hacks . | . . . . . Unauthorized Hacks . | . . . . . Terminals . | . . . . . Fabricators . | . . . . . Repair Stations . | . . . . . Recycling Units . | . . . . . Scanalyzers . | . . . . . Garrison Access . | . . . . . Data Cores Recovered . | . . . . . Used . | . . . . . Hacking Detections 1 | . . . . 1 Full Trace Events . | . . . . . Feedback Events . | . . . . . Feedback Blocked . | . . . . . Robot Schematics Acquired . | . . . . . Robots Built . | . . . . . Authchips . | . . . . . Time . | . . . . . Total Robot Build Rating . | . . . . . Part Schematics Acquired 1 | . . . 1 . Parts Built . | . . . . . Authchips . | . . . . . Time . | . . . . . Total Part Build Rating . | . . . . . Parts Repaired . | . . . . . Time . | . . . . . Parts Recycled . | . . . . . Recycled Matter . | . . . . . Retrieved Matter . | . . . . . Retrieved Components . | . . . . . Parts Scanalyzed 1 | . . . 1 . Part Schematics Acquired 1 | . . . 1 . Parts Damaged . | . . . . . Bothacking | -11 -10 -10 -9 -9 ------------ Run | Yrd Mat Min Mat Sto Used RIF Installer . | . . . . . Robots Hacked . | . . . . . Non-combat . | . . . . . Combat . | . . . . . Robot Hacks Applied . | . . . . . Relay Couplers Released . | . . . . . Fabnet Peak Effective % . | . . . . . Robots Rewired . | . . . . . Allies Hacked . | . . . . . Hacks Repelled . | . . . . . Allies | -11 -10 -10 -9 -9 -------- Run | Yrd Mat Min Mat Sto Total Allies 2 | . . . . 2 Largest Group 2 | . . . . 2 Highest-Rated Group 62 | . . . . 62 Highest-Rated Ally 31 | . . . . 31 Total Orders . | . . . . . Ally Attacks 48 | . . . . 48 Total Damage 692 | . . . . 692 Kills 9 | . . . . 9 Allies Corrupted . | . . . . . Allies Melted . | . . . . . Intel | -11 -10 -10 -9 -9 ------- Run | Yrd Mat Min Mat Sto Robot Analysis Total . | . . . . . Derelict Logs Recovered . | . . . . . Drone Launches . | . . . . . Drone Recoveries . | . . . . . Exploration | -11 -10 -10 -9 -9 ------------- Run | Yrd Mat Min Mat Sto Turns Passed 1015 | 81 231 141 248 314 Spaces Moved 565 | 51 179 96 108 131 Core 18 | 17 . . 1 . Treads . | . . . . . Legs 546 | 34 179 96 107 130 Wheels . | . . . . . Hover . | . . . . . Flight 1 | . . . . 1 Fastest Speed 50 | 50 120 120 100 120 Average Speed 119 | 114 120 120 119 122 Slowest Speed 190 | 150 120 120 120 190 Overloaded Moves . | . . . . . Propulsion Burnouts . | . . . . . Robots Hopped . | . . . . . Cave-ins Triggered . | . . . . . Exploration Rate (%) 27 | 4 37 40 15 43 Regions Visited 4 Branch Regions 2 Pre-discovered Areas . | . . . . . Known Exits Taken . | . . . . . Unknown Exits Taken 4 | 1 1 1 1 . Scrap Searched . | . . . . . Spaces Dug . | . . . . . Terrain Destroyed 118 | . . . 59 59 Melee . | . . . . . Projectile . | . . . . . AOE 118 | . . . 59 59 Terrain Rammed . | . . . . . Walls Destroyed . | . . . . . Machines Disabled . | . . . . . Actions | -11 -10 -10 -9 -9 --------- Run | Yrd Mat Min Mat Sto Total 780 | 67 192 122 174 225 Wait 37 | . 2 26 3 6 Move 561 | 50 178 95 107 131 Hop . | . . . . . Pick Up 36 | 7 5 1 12 11 Fast Attach . | . . . . . Attach 23 | 6 2 . 9 6 Detach . | . . . . . Swap 17 | . 1 . 8 8 Drop 13 | . 2 . 4 7 Fire 81 | 4 2 . 21 54 Melee 10 | . . . 10 . Ram . | . . . . . Kick 2 | . . . . 2 Crush . | . . . . . Escape Stasis . | . . . . . Rewire . | . . . . . Trap . | . . . . . Miscellaneous . | . . . . . Route ------- -11/Scrapyard -10/Materials (discovered 2 exits: [*Min x2]) -10/Mines -9/Materials -9/Storage History --------- Turn | Location | Event 14 | -11/Scrapyard | Discovered new exit (range 15) 82 | -11/Scrapyard | Entered Materials 230 | -10/Materials | Discovered new exit (range 6) 280 | -10/Materials | Discovered new exit (range 9) 305 | -10/Materials | Build established: Mutant 313 | -10/Materials | Entered Mines 381 | -10/Mines | Found a hidden stash of uninstalled traps 441 | -10/Mines | Discovered new exit (range 9) 454 | -10/Mines | Entered Materials 454 | -9/Materials | Evolved 2 slots: Utility x2 618 | -9/Materials | Discovered new exit (range 15) 647 | -9/Materials | Lost 7 parts (1p2n4w) 702 | -9/Materials | Entered Storage 710 | -9/Storage | Met a pair of Derelict thieves 906 | -9/Storage | Core integrity fell below 50% 966 | -9/Storage | Core integrity fell below 20% 1005 | -9/Storage | Destroyed 10 combat bots 1016 | -9/Storage | Destroyed by S-10 Pest with Light Assault Rifle Last Messages --------------- G-47 Trooper destroyed. Door Terminal disabled. G-34 Mercenary destroyed. Y-45 Defender destroyed. K-01 Serf collects debris. Aluminum Leg destroyed. K-01 Serf collects debris. Beam Rifle melted. Y-45 Defender destroyed. Acquired 94 matter. K-01 Serf collects debris. Acquired 10 matter. Identified Hvy. Ion Engine. Acquired 10 matter. K-01 Serf collects debris. Kicked K-01 Serf. W-16 Scout sends out distress signal. C-30 ARC bursts open, deploying its payload. S-10 Pest unfolds itself. S-10 Pest destroyed. Map ----- +----------------------------------------------------+ | | | | | | | | | | | | | ?????????????????????????????????????????????????? | | ?????????????????????????????????????????????????? | | ?????????????????????????????????????????????????? | | ?????????????????????????????????????????????????? | | ?????????????????????????????????????????????????? | | ?????????????????????????????????????????????????? | | ?????????????????????????????????????????????????? | | ?????????????????????????????????????????????????? | | ?????????????????????????????????????????????????? | | ?????????????????????????????????????????????????? | | ?????????????????????????????????????????????????? | | ?????????????????????????????????????????????????? | | ????????????????????????????##???????????????????? | | ???????????????????????????? ##??????????????????? | | ???????????????????????????? #??????????????????? | | ???????????????????????????? ???????????????????? | | ??????????????????????????## ##??????????????????? | | ?????????????????########## #?#########????????? | | ?????????????????# % #* #? ???????? | | ?????????????????# @/% # ???????? | | ?????????????????# s%#= # ???????? | | ?????????????????#=! =+ ; ???????? | | ?????????????????#[= # # a ???????? | | ?????????????????# [ # #?######???????????? | | ?????????????????##########[[ #####??????????????? | | ????????????????????????###[*= ##?????????????? | | ??????????????????????###=%=[[ T#?????????????? | | ??????????????????????# [%%[=% ##"##?????????????? | | ??????????????????????###[=[*=##?????????????????? | | ???????????????????????# #% [#??????????????????? | | ???????????????????????#### #????????? ????????? | | ??????????????????????????# #????????? ????????? | | ??????????????????????????# #????????? ????????? | | ?????????????????###?#????# #????????? ????????? | | ????????????????""" ""????# #????????? ????????? | | ?????????????????"" """???# #????????? ????????? | | ??????????????????" """???# " ########?? ???????## | | ???????????????????? ??#"%" #?# #?????? | | ????????????????????? ??# " #?# ?????? | | ?????????????????????? ?# #?# #??????? | | ????????????????#+######"## ########### #???????" | | ?????????? # # #???????? | | ?????????? " # #??????? | | ?????????? # / # ####### [ | +----------------------------------------------------+ Best States ------------- Heat Dissipation 42 Energy Generation 14 Energy Capacity 280 Matter Stores 400 Matter Capacity 400 Sight Range 16 Terrain Scan Density 10 Additional Mass Support 12 Power Shielding 33 Evasion (%) 55 Targeting Accuracy 5 Item Schematics ----------------- Rocket Launcher | -9/Materials | Scanalyzed Robot Schematics ------------------ None Fabricated ------------ Nothing Alien Tech Used ----------------- None Achievements -------------- None Challenges ------------ None Game ------ Seed AssembledRecoilFacilitator Manual? 0 Play Time 00:16:15 Cumulative 23.4 hours Start 2024.11.12 @ 12:44:35 End 2024.11.12 @ 13:01:00 Sessions 1 Manual Loads 0 Difficulty Rogue Special Mode None Game No. 42 Rogue 42 Adventurer 0 Explorer 0 Win Type - Total 0 Types 0/0/0/0/0/0/0/0/0 Lore% 12 Gallery% 23 Achievement% 19 Wizard Run 0 Options --------- Layout 1 ASCII 0 Keyboard 0 Movement Mouse Keybinds 0 Fullscreen 1 Font 24/Terminus Map View 50x35 Zoom Use 0% Tactical HUD 0 Map Filters NONE Filters NONE Steam 1 RUN: dd245eb9-58c3-4ade-b5f8-432017c66b12